Workbook

Sheet Foglio1
A1: How to estimate carbon emissions for road mobility of O-event participants
A2: This method will provide a reasonable estimate of carbon emissions (CO2e). More accurate estimates are certainly feasible, albeit with a significant increase in complexity and effort, leading to possible inconsistencies and errors.
A4: Step 1 - Count the total number of vehicles in the parking lots
A6: Total number of cars | B6: (count) | C6: 125
A8: Step 2 - Define a sample representative of the vehicle set (consider that vehicles may be sorted by type when directed at sections of the parking lot)
A10: Step 3 - Count the number of vehicles falling in each of the following classes and calculate average emissions/km
B11: Description | C11: n | D11: % | E11: kg CO2e/km (source: UK DfB-E&IS)
A12: Small car | B12: Petrol up to 1.4 l; Diesel up to 1.7 l; segments A and B | C12: 12 | D12: =C12/C$16*100 -> 20.34 | E12: 0.14549 | F12: =D12*E12/100 -> 0.02959
A13: Medium car | B13: Petrol 1.4-2.0 l; Diesel 1.7-2.0 l; segment C | C13: 27 | D13: =C13/C$16*100 -> 45.76 | E13: 0.17562 | F13: =D13*E13/100 -> 0.08037
A14: Large car | B14: Petrol and Diesel over 2.0 l; segments D and above | C14: 15 | D14: =C14/C$16*100 -> 25.42 | E14: 0.22597 | F14: =D14*E14/100 -> 0.05745
A15: Van | B15: Average 9-seats van | C15: 5 | D15: =C15/C$16*100 -> 8.47 | E15: 0.24017 | F15: =D15*E15/100 -> 0.02035
A16: Totals/averages in the sample | C16: =SUM(C12:C15) -> 59 | D16: =SUM(D12:D15) -> 100.00 | E16: Aver. emissions/km | F16: =SUM(F12:F15) -> 0.18776
A18: Step 4 - From the participants list, draw the number of runners/club and calculate the one-way distance of the club seat from the event location (e.g. with Google Maps)
A20: Clubs | B20: Seat | C20: Distance | D20: Runners | E20: Km*Runners
A21: Aaaaaa | B21: Rome | C21: 720 | D21: 12 | E21: =C21*2*D21 -> 17280
A22: Bbbbbb | B22: Milan | C22: 356 | D22: 22 | E22: =C22*2*D22 -> 15664
A23: Cccccc | B23: Turin | C23: 458 | D23: 4 | E23: 3664
A24: Dddddd | B24: Bologna | C24: 220 | D24: 45 | E24: 19800
A25: Eeeeee | B25: Trento | C25: 25 | D25: 125 | E25: 6250
A26: Ffffff | B26: Bozen | C26: 85 | D26: 90 | E26: 15300
A27: Gggggg | B27: Verona | C27: 123 | D27: 12 | E27: 2952
A28: Hhhhhh | B28: Vicenza | C28: 156 | D28: 23 | E28: 7176
D29: =SUM(D21:D28) -> 333 | E29: =SUM(E21:E28) -> 88086
D30: Total runners | E30: Total km*runners
A32: Step 5 - Calculate the car-sharing rate and the actual car-km
A34: Car sharing rate = Total Runners/Total Cars | D34: Sharing rate | E34: Actual car km
A35: Actual car km = Total km*runners/sharing rate | D35: =D29/C6 -> 2.66 | E35: =E29/D35 -> 33065
A37: Step 6 - Calculate the total emissions and emission/runner
A39: Total emissions (kg CO2e) = actual car km * average car emissions | E39: =E35*F16 -> 6208.44
A40: Emission per runner (kg CO2e) = total emissions / n. runners | E40: =E39/D29 -> 18.64
A42: Step 7 - Emission offsetting (optional)
A44: Carbon emission compensation (examples) (*) | C44: Price/ton | D44: Per event | E44: Per runner
A45: EU Emission Trading Scheme (14 May 2021) | C45: 56.00 € | D45: =$E$39*C45/1000 -> 347.67 € | E45: =$E$40*C45/1000 -> 1.04 €
A46: Voluntary CDM certified projects (min CER price) | C46: 1.00 € | D46: =$E$39*C46/1000 -> 6.21 € | E46: =$E$40*C46/1000 -> 0.02 €
A47: Voluntary CDM certified projects (max CER price) | C47: 50.00 € | D47: 310.42 € | E47: 0.93 €
A48: Proposed by ENGOs | C48: 100.00 € | D48: 620.84 € | E48: =$E$40*C48/1000 -> 1.86 €
A50: (*) The compensation (offset) of carbon emissions by the purchase of certificates that fund projects contributing to the mitigation of emissions is a controversial issue. The first objective of any organisation should be the avoidance of emissions. However, at least on a temporary basis, unavoidable emissions can be offset by buying CERs (Certified Emission Reductions) available through the UN Carbon Offset Platform. A range of prices per ton CO2e is reported to calculate the theorical cost of offsetting carbon emissions per event or per runner.
